fUST/lending_fUST_20251206
["ID","MTS","AMOUNT","RATE_DAILY","PERIOD"]
[396476381,1764981038416,-162.0,0.000163,2]
[396476383,1764981038425,-1209.13734509,0.00016412,2]
[396476385,1764981038437,-82.2928614,0.00016412,2]
[396476387,1764981038446,-151.0,0.00016423,2]
[396476389,1764981038455,-201.83838388,0.00016423,2]
[396476439,1764981467838,1000.0,0.00011,2]
[396476440,1764981474874,1000.0,0.00013,3]
[396476441,1764981480038,361.51,0.00011244,2]
[396476442,1764981480381,361.51,0.00011244,2]
[396476484,1764982144021,250.0,0.00012999,3]
[396476689,1764982237625,-300.0,0.00011629,2]
[396476691,1764982237634,-188.04394154,0.00011629,2]
[396476693,1764982237645,-111.95605846,0.00011629,2]
[396476695,1764982237655,-1200.0,0.00011629,2]
[396476697,1764982237664,-245.0,0.00011629,2]
[396476699,1764982237673,-61.52949439,0.00011629,2]
[396476701,1764982237684,-386.97430039,0.00011629,2]
[396476703,1764982237694,-31.52340819,0.00011629,2]
[396476706,1764982237705,-474.81432748,0.00011629,2]
[396476708,1764982237714,-500.0,0.00011629,2]
[396476710,1764982237723,-90.31423352,0.00011629,2]
[396476718,1764982237793,-515.34447158,0.00011629,2]
[396476720,1764982237804,-500.0,0.00011629,2]
[396476722,1764982237813,-500.0,0.00011629,2]
[396476724,1764982237822,-330.2214812,0.00011629,2]
[396476726,1764982237831,-500.0,0.00011629,2]
[396476728,1764982237841,-500.0,0.00011629,2]
[396476730,1764982237850,-500.0,0.00011629,2]
[396476732,1764982237860,-500.0,0.00011629,2]
[396476734,1764982237869,-415.71066306,0.00011629,2]
[396476736,1764982237880,-84.28933694,0.00011629,2]
[396476738,1764982237889,-500.0,0.00011629,2]
[396476740,1764982237898,-500.0,0.00011629,2]
[396476742,1764982237908,-500.0,0.00011629,2]
[396476744,1764982237917,-494.13225469,0.00011629,2]
[396476746,1764982237925,-473.78984737,0.00011629,2]
[396476807,1764982239779,-26.21015263,0.00011629,2]
[396476808,1764982239790,-500.0,0.00011629,2]
[396476809,1764982239799,-500.0,0.00011629,2]
[396476810,1764982239810,-500.0,0.00011629,2]
[396476811,1764982239819,-500.0,0.00011629,2]
[396476812,1764982239829,-500.0,0.00011629,2]
[396476813,1764982239839,-500.0,0.00011629,2]
[396476814,1764982239849,-500.0,0.00011629,2]
[396476815,1764982239860,-500.0,0.00011629,2]
[396476816,1764982239870,-500.0,0.00011629,2]
[396476817,1764982239879,-500.0,0.00011629,2]
[396476818,1764982239888,-500.0,0.00011629,2]
[396476819,1764982239898,-434.00371745,0.00011629,2]
[396476820,1764982239908,-500.0,0.00011629,2]
[396476821,1764982239918,-500.0,0.00011629,2]
[396476822,1764982239929,-500.0,0.00011629,2]
[396476823,1764982239938,-500.0,0.00011629,2]
[396476824,1764982239948,-500.0,0.00011629,2]
[396476825,1764982239957,-500.0,0.00011629,2]
[396476826,1764982239966,-500.0,0.00011629,2]
[396476827,1764982239975,-500.0,0.00011629,2]
[396476828,1764982239984,-500.0,0.00011629,2]
[396476829,1764982239994,-500.0,0.00011629,2]
[396476830,1764982240003,-500.0,0.00011629,2]
[396476831,1764982240012,-500.0,0.00011629,2]
[396476832,1764982240022,-172.31728444,0.00011631,2]
[396476833,1764982240031,-600.0,0.00011638,2]
[396476834,1764982240040,-300.0,0.00011639,2]
[396476835,1764982240049,-300.0,0.00011639,2]
[396476836,1764982240059,-300.0,0.00011639,2]
[396476837,1764982240068,-300.0,0.00011639,2]
[396476838,1764982240078,-300.0,0.00011639,2]
[396476839,1764982240088,-300.0,0.00011639,2]
[396476840,1764982240098,-300.0,0.00011639,2]
[396476841,1764982240107,-300.0,0.00011639,2]
[396476842,1764982240116,-300.0,0.00011639,2]
[396476843,1764982240126,-300.0,0.00011639,2]
[396476844,1764982240135,-295.19578686,0.00011639,2]
[396476845,1764982240147,-4.80421314,0.00011639,2]
[396476846,1764982240156,-300.0,0.00011639,2]
[396476847,1764982240166,-300.0,0.00011639,2]
[396476848,1764982240176,-300.0,0.00011639,2]
[396476849,1764982240186,-300.0,0.00011639,2]
[396476850,1764982240195,-420.0,0.00012771,2]
[396476851,1764982240204,-720.0,0.00012802,2]
[396476852,1764982240214,-302.80472979,0.00012863,2]
[396476853,1764982240229,-460.54735645,0.00013273,2]
[396476854,1764982240239,-500.0,0.00013273,2]
[396476855,1764982240249,-500.0,0.00013273,2]
[396476856,1764982240258,-500.0,0.00013273,2]
[396476857,1764982240267,-500.0,0.00013273,2]
[396476858,1764982240276,-2.46152873,0.00013273,2]
[396476862,1764982242803,-322.908042,0.00013273,2]
[396476863,1764982242812,-1842.97153185,0.00013376,2]
[396476864,1764982242822,-203.33439564,0.00013631,2]
[396476865,1764982242832,-1038.46603051,0.00013699,2]
[396476866,1764982242961,-894.21,0.00013699,2]
[396476875,1764982245710,-358.49902386,0.00013699,2]
[396476881,1764982494121,394.0,0.0001311,3]
[396476882,1764982675083,1000.0,0.0001311,3]
[396476883,1764982785462,1000.0,0.0001311,3]
[396476917,1764983285572,168.7,0.00011244,2]
[396476918,1764983285857,168.7,0.00011244,2]
[396476919,1764983286288,168.71,0.00011244,2]
[396476923,1764983342463,250.0,0.00013109,3]
[396476985,1764983437865,-251.0,0.00012274,2]
[396476987,1764983437877,-164.80425084,0.0001243,2]
[396476990,1764983437888,-1000.0,0.00012777,2]
[396476992,1764983437900,-500.0,0.00013273,2]
[396476994,1764983437910,-282.0,0.00013434,2]
[396476996,1764983437923,-300.0,0.00013435,2]
[396476999,1764983437935,-300.0,0.00013435,2]
[396477001,1764983437946,-300.0,0.00013435,2]
[396477003,1764983437958,-300.0,0.00013435,2]
[396477005,1764983437968,-300.0,0.00013435,2]
[396477008,1764983437980,-300.0,0.00013435,2]
[396477010,1764983437992,-300.0,0.00013435,2]
[396477012,1764983438003,-300.0,0.00013435,2]
[396477014,1764983438015,-300.0,0.00013435,2]
[396477017,1764983438030,-300.0,0.00013435,2]
[396477019,1764983438040,-300.0,0.00013435,2]
[396477021,1764983438050,-300.0,0.00013435,2]
[396477023,1764983438061,-300.0,0.00013435,2]
[396477025,1764983438072,-300.0,0.00013435,2]
[396477028,1764983438084,-300.0,0.00013435,2]
[396477030,1764983438093,-2856.38499913,0.00013599,2]
[396477032,1764983438108,-558.0997,0.00013599,2]
[396477046,1764983438247,-3713.44858935,0.00013599,2]
[396477048,1764983438259,-536.69127569,0.00013672,2]
[396477050,1764983438275,-221.57025052,0.00013672,2]
[396477052,1764983438295,-500.0,0.00013672,2]
[396477054,1764983438305,-500.0,0.00013672,2]
[396477056,1764983438315,-74.89881331,0.00013672,2]
[396477059,1764983438331,-425.10118669,0.00013672,2]
[396477061,1764983438342,-193.40037175,0.00013672,2]
[396477063,1764983438353,-641.32441356,0.00013673,2]
[396477066,1764983438369,-1333.617232,0.00013673,2]
[396477068,1764983438383,-291.13024207,0.00013673,2]
[396477071,1764983438399,-839.61090459,0.00013673,2]
[396477073,1764983438410,-250.0,0.00013698,2]
[396477075,1764983438420,-643.49579473,0.00013699,2]
[396477077,1764983438432,-860.70640246,0.00013699,2]
[396477675,1764983445968,-511.23,0.00012151,2]
[396481423,1764983563715,333.33333333,0.000211,99]
[396481424,1764983564142,333.33333333,0.000211,99]
[396481425,1764983564572,333.33333333,0.000211,99]
[396481426,1764983565002,333.33333333,0.000211,99]
[396481427,1764983566845,333.33333333,0.000211,99]
[396481428,1764983567252,333.33333333,0.000211,99]
[396481429,1764983567677,333.33333333,0.000211,99]
[396481430,1764983568080,333.33333333,0.000211,99]
[396481431,1764983568473,333.33333333,0.000211,99]
[396481432,1764983568877,333.33333333,0.000211,99]
[396481448,1764984543423,250.0,0.00013108,3]
[396481495,1764984632086,-302.85712798,0.00011842,2]
[396481497,1764984632100,-4697.14287202,0.00011842,2]
[396481498,1764984632112,-248.0,0.00011962,2]
[396481499,1764984632122,-187.60816582,0.00012095,2]
[396481500,1764984632131,-7734.42543604,0.00012226,2]
[396481502,1764984632141,-193.44189305,0.00012227,2]
[396481503,1764984632150,-300.0,0.00012227,2]
[396481504,1764984632159,-300.0,0.00012227,2]
[396481505,1764984632169,-1200.0,0.00012227,2]
[396481506,1764984632178,-500.0,0.00012227,2]
[396481507,1764984632187,-500.0,0.00012227,2]
[396481508,1764984632196,-253510.2735843,0.00012228,2]
[396481509,1764984632207,-330.25242726,0.00012228,2]
[396481510,1764984632230,-4207.43411641,0.00012228,2]
[396481511,1764984632242,-2201.04765309,0.00012228,2]
[396481512,1764984632252,-5269.30010608,0.00012228,2]
[396481545,1764984638149,-624481.69211286,0.00012228,2]
[396481547,1764984638159,-1200.0,0.00012326,2]
[396481549,1764984638168,-500.0,0.00012327,2]
[396481551,1764984638177,-5373.57,0.00012327,2]
[396481553,1764984638187,-785.9,0.00012327,2]
[396481555,1764984638196,-856.82,0.00012327,2]
[396481557,1764984638205,-502.2,0.00012327,2]
[396481559,1764984638215,-500.0,0.00012327,2]
[396481561,1764984638224,-4577.73,0.00012327,2]
[396481562,1764984638233,-2814.42,0.00012327,2]
[396481563,1764984638243,-5044.77,0.00012327,2]
[396481564,1764984638252,-500.0,0.00012327,2]
[396481565,1764984638262,-520.69,0.00012327,2]
[396481566,1764984638271,-500.0,0.00012327,2]
[396481567,1764984638280,-1037.07,0.00012327,2]
[396481568,1764984638289,-8115.63174943,0.00012327,2]
[396481569,1764984638298,-931.99,0.00012329,2]
[396481570,1764984638307,-1186.73,0.00012329,2]
[396481571,1764984638317,-988.94,0.00012329,2]
[396481572,1764984638327,-827.21,0.00012329,2]
[396481573,1764984638336,-689.34,0.00012329,2]
[396481574,1764984638345,-574.45,0.00012329,2]
[396481575,1764984638358,-258.64123376,0.00012486,2]
[396481576,1764984638369,-465.55422076,0.00012486,2]
[396481577,1764984638379,-827.65194802,0.00012486,2]
[396481578,1764984638389,-1293.20616879,0.00012486,2]
[396481579,1764984638398,-1860.35466617,0.00012486,2]
[396481580,1764984638407,-5879.88793002,0.000125,2]
[396481581,1764984638417,-236.25742931,0.00012501,2]
[396481582,1764984638426,-500.0,0.00012501,2]
[396481583,1764984638435,-500.0,0.00012574,2]
[396481584,1764984638445,-300.0,0.00012574,2]
[396481585,1764984638456,-300.0,0.00012574,2]
[396481586,1764984638469,-300.0,0.00012574,2]
[396481588,1764984638478,-300.0,0.00012574,2]
[396481590,1764984638488,-300.0,0.00012574,2]
[396481592,1764984638498,-300.0,0.00012574,2]
[396481594,1764984638507,-300.0,0.00012574,2]
[396481596,1764984638517,-300.0,0.00012574,2]
[396481598,1764984638526,-300.0,0.00012574,2]
[396481601,1764984638536,-300.0,0.00012574,2]
[396481602,1764984638545,-300.0,0.00012574,2]
[396481604,1764984638555,-300.0,0.00012574,2]
[396481606,1764984638565,-300.0,0.00012574,2]
[396481609,1764984638575,-300.0,0.00012574,2]
[396481611,1764984638584,-300.0,0.00012574,2]
[396481613,1764984638593,-500.0,0.00012601,2]
[396481615,1764984638602,-5373.57,0.00012601,2]
[396481616,1764984638611,-785.9,0.00012601,2]
[396481619,1764984638621,-856.82,0.00012601,2]
[396481621,1764984638631,-502.2,0.00012601,2]
[396481622,1764984638641,-500.0,0.00012601,2]
[396481624,1764984638651,-4577.73,0.00012601,2]
[396481626,1764984638660,-2814.42,0.00012601,2]
[396481628,1764984638670,-5044.77,0.00012601,2]
[396481630,1764984638680,-500.0,0.00012601,2]
[396481633,1764984638690,-520.69,0.00012601,2]
[396481635,1764984638699,-500.0,0.00012601,2]
[396481636,1764984638709,-1037.07,0.00012601,2]
[396481638,1764984638719,-500.0,0.00012775,2]
[396481639,1764984638728,-500.0,0.00012823,2]
[396481640,1764984638737,-853.71,0.00012823,2]
[396481642,1764984638747,-801.55,0.00012823,2]
[396481644,1764984638757,-620.92,0.00012823,2]
[396481645,1764984638766,-500.0,0.00012823,2]
[396481647,1764984638775,-500.0,0.00012823,2]
[396481648,1764984638785,-500.0,0.00012823,2]
[396481650,1764984638794,-764.94,0.00012823,2]
[396481651,1764984638803,-500.0,0.00012823,2]
[396481652,1764984638813,-3498.92,0.00012823,2]
[396481653,1764984638823,-655.07,0.00012823,2]
[396481654,1764984638832,-588.87,0.00012823,2]
[396481655,1764984638841,-500.0,0.00012823,2]
[396481656,1764984638852,-681.95,0.00012823,2]
[396481657,1764984638861,-520.94,0.00012823,2]
[396481658,1764984638870,-2149.63,0.00012823,2]
[396481659,1764984638880,-1365.09,0.00012823,2]
[396481660,1764984638890,-500.0,0.00012823,2]
[396481661,1764984638900,-500.0,0.00012823,2]
[396481662,1764984638910,-500.0,0.00012823,2]
[396481663,1764984638920,-1566.82,0.00012823,2]
[396481664,1764984638930,-500.0,0.00012823,2]
[396481665,1764984638939,-500.0,0.00012823,2]
[396481666,1764984638949,-892.27,0.00012823,2]
[396481667,1764984638959,-500.0,0.00012823,2]
[396481668,1764984638968,-667.29,0.00012823,2]
[396481669,1764984638979,-795.69,0.00012823,2]
[396481670,1764984638989,-1027.78,0.00012823,2]
[396481671,1764984638999,-824.92,0.00012823,2]
[396481672,1764984639008,-552.81,0.00012823,2]
[396481673,1764984639018,-500.0,0.00012823,2]
[396481674,1764984639029,-1145.85,0.00012823,2]
[396481675,1764984639039,-600.0,0.00012824,2]
[396481676,1764984639049,-507.19084529,0.00012848,2]
[396481677,1764984639060,-500.0,0.00012875,2]
[396481678,1764984639301,-5373.57,0.00012875,2]
[396481679,1764984639311,-785.9,0.00012875,2]
[396481680,1764984639320,-856.82,0.00012875,2]
[396481681,1764984639330,-502.2,0.00012875,2]
[396481682,1764984639340,-500.0,0.00012875,2]
[396481683,1764984639349,-4577.73,0.00012875,2]
[396481684,1764984639360,-2814.42,0.00012875,2]
[396481685,1764984639369,-5044.77,0.00012875,2]
[396481686,1764984639379,-500.0,0.00012875,2]
[396481687,1764984639389,-520.69,0.00012875,2]
[396481688,1764984639398,-500.0,0.00012875,2]
[396481689,1764984639408,-1037.07,0.00012875,2]
[396481690,1764984639417,-6896.73287715,0.000129,2]
[396481691,1764984639428,-500.0,0.00013049,2]
[396481692,1764984639438,-500.0,0.00013097,2]
[396481693,1764984639448,-853.71,0.00013097,2]
[396481694,1764984639458,-801.55,0.00013097,2]
[396481695,1764984639467,-620.92,0.00013097,2]
[396481696,1764984639476,-500.0,0.00013097,2]
[396481697,1764984639487,-500.0,0.00013097,2]
[396481698,1764984639497,-500.0,0.00013097,2]
[396481699,1764984639507,-764.94,0.00013097,2]
[396481700,1764984639517,-500.0,0.00013097,2]
[396481701,1764984639527,-3498.92,0.00013097,2]
[396481702,1764984639537,-655.07,0.00013097,2]
[396481703,1764984639546,-588.87,0.00013097,2]
[396481704,1764984639555,-500.0,0.00013097,2]
[396481705,1764984639564,-681.95,0.00013097,2]
[396481706,1764984639574,-520.94,0.00013097,2]
[396481707,1764984639583,-2149.63,0.00013097,2]
[396481708,1764984639592,-1365.09,0.00013097,2]
[396481709,1764984639601,-265.46467152,0.00013097,2]
[396481710,1764984639611,-500.0,0.00013097,2]
[396481711,1764984639620,-500.0,0.00013097,2]
[396481712,1764984639638,-1566.82,0.00013097,2]
[396481713,1764984639652,-500.0,0.00013097,2]
[396481714,1764984639661,-500.0,0.00013097,2]
[396481715,1764984639670,-892.27,0.00013097,2]
[396481716,1764984639680,-500.0,0.00013097,2]
[396481717,1764984639689,-667.29,0.00013097,2]
[396481718,1764984639698,-795.69,0.00013097,2]
[396481719,1764984639707,-1027.78,0.00013097,2]
[396481720,1764984639715,-824.92,0.00013097,2]
[396481721,1764984639724,-552.81,0.00013097,2]
[396481722,1764984639733,-500.0,0.00013097,2]
[396481723,1764984639742,-1145.85,0.00013097,2]
[396481724,1764984639751,-500.0,0.00013149,2]
[396481725,1764984639761,-5373.57,0.00013149,2]
[396481726,1764984639770,-785.9,0.00013149,2]
[396481727,1764984639779,-856.82,0.00013149,2]
[396481728,1764984639788,-502.2,0.00013149,2]
[396481729,1764984639798,-500.0,0.00013149,2]
[396481730,1764984639807,-4577.73,0.00013149,2]
[396481731,1764984639818,-2814.42,0.00013149,2]
[396481732,1764984639827,-5044.77,0.00013149,2]
[396481733,1764984639836,-500.0,0.00013149,2]
[396481736,1764984639845,-520.69,0.00013149,2]
[396481739,1764984639854,-500.0,0.00013149,2]
[396481741,1764984639863,-1037.07,0.00013149,2]
[396481742,1764984639873,-524.71652456,0.00013273,2]
[396481744,1764984639882,-500.0,0.00013273,2]
[396481747,1764984639892,-505.40580133,0.00013273,2]
[396481748,1764984639901,-500.5585097,0.00013273,2]
[396481750,1764984639909,-500.0,0.00013323,2]
[396481752,1764984639918,-500.0,0.00013371,2]
[396481754,1764984639927,-853.71,0.00013371,2]
[396481756,1764984639936,-801.55,0.00013371,2]
[396481758,1764984639945,-620.92,0.00013371,2]
[396481760,1764984639954,-500.0,0.00013371,2]
[396481761,1764984639963,-500.0,0.00013371,2]
[396481762,1764984639972,-500.0,0.00013371,2]
[396481763,1764984639981,-764.94,0.00013371,2]
[396481764,1764984639990,-500.0,0.00013371,2]
[396481765,1764984639999,-3498.92,0.00013371,2]
[396481766,1764984640009,-655.07,0.00013371,2]
[396481767,1764984640018,-588.87,0.00013371,2]
[396481768,1764984640026,-500.0,0.00013371,2]
[396481769,1764984640039,-681.95,0.00013371,2]
[396481770,1764984640048,-520.94,0.00013371,2]
[396481771,1764984640057,-2149.63,0.00013371,2]
[396481772,1764984640067,-1365.09,0.00013371,2]
[396481773,1764984640077,-500.0,0.00013371,2]
[396481774,1764984640087,-500.0,0.00013371,2]
[396481775,1764984640096,-1566.82,0.00013371,2]
[396481776,1764984640105,-500.0,0.00013371,2]
[396481777,1764984640117,-500.0,0.00013371,2]
[396481778,1764984640126,-892.27,0.00013371,2]
[396481779,1764984640135,-500.0,0.00013371,2]
[396481780,1764984640145,-667.29,0.00013371,2]
[396481781,1764984640154,-795.69,0.00013371,2]
[396481782,1764984640163,-1027.78,0.00013371,2]
[396481783,1764984640172,-824.92,0.00013371,2]
[396481784,1764984640181,-552.81,0.00013371,2]
[396481785,1764984640191,-500.0,0.00013371,2]
[396481786,1764984640199,-1145.85,0.00013371,2]
[396481787,1764984640209,-308.0,0.00013419,2]
[396481788,1764984640219,-203.62214717,0.00013423,2]
[396481789,1764984640228,-5373.57,0.00013423,2]
[396481790,1764984640238,-785.9,0.00013423,2]
[396481791,1764984640247,-856.82,0.00013423,2]
[396481792,1764984640256,-502.2,0.00013423,2]
[396481793,1764984640265,-500.0,0.00013423,2]
[396481794,1764984640274,-4577.73,0.00013423,2]
[396481795,1764984640283,-2814.42,0.00013423,2]
[396481796,1764984640292,-5044.77,0.00013423,2]
[396481797,1764984640302,-500.0,0.00013423,2]
[396481798,1764984640313,-520.69,0.00013423,2]
[396481799,1764984640323,-500.0,0.00013423,2]
[396481800,1764984640333,-1037.07,0.00013423,2]
[396481801,1764984640342,-500.0,0.00013567,2]
[396481802,1764984640351,-591.82565703,0.00013567,2]
[396481803,1764984640360,-500.0,0.00013567,2]
[396481804,1764984640369,-500.0,0.00013567,2]
[396481805,1764984640378,-500.0,0.00013567,2]
[396481806,1764984640387,-500.0,0.00013567,2]
[396481807,1764984640396,-620.0,0.00013567,2]
[396481808,1764984640406,-500.0,0.00013567,2]
[396481809,1764984640416,-898.04,0.00013567,2]
[396481810,1764984640426,-500.0,0.00013567,2]
[396481811,1764984640435,-500.0,0.00013567,2]
[396481812,1764984640444,-681.84,0.00013567,2]
[396481813,1764984640454,-500.0,0.00013567,2]
[396481814,1764984640463,-500.0,0.00013567,2]
[396481815,1764984640473,-500.0,0.00013567,2]
[396481816,1764984640482,-1516.05,0.00013567,2]
[396481817,1764984640492,-1404.0,0.00013567,2]
[396481818,1764984640502,-500.0,0.00013567,2]
[396481819,1764984640511,-500.0,0.00013567,2]
[396481820,1764984640521,-562.49,0.00013567,2]
[396481821,1764984640532,-613.75679381,0.00013567,2]
[396481822,1764984640542,-1017.17,0.00013567,2]
[396481823,1764984640551,-920.33,0.00013567,2]
[396481824,1764984640560,-667.7,0.00013567,2]
[396481825,1764984640569,-500.0,0.00013567,2]
[396481827,1764984640578,-3402.67,0.00013567,2]
[396481828,1764984640587,-500.0,0.00013567,2]
[396481829,1764984640596,-1979.91,0.00013567,2]
[396481830,1764984640605,-500.0,0.00013567,2]
[396481831,1764984640614,-500.0,0.00013567,2]
[396481832,1764984640624,-500.0,0.00013567,2]
[396481833,1764984640634,-695.76,0.00013567,2]
[396481834,1764984640644,-500.0,0.00013567,2]
[396481835,1764984640654,-2098.47,0.00013567,2]
[396481836,1764984640663,-838.31,0.00013567,2]
[396481837,1764984640671,-500.0,0.00013567,2]
[396481838,1764984640680,-500.0,0.00013597,2]
[396481839,1764984640689,-3105.68279223,0.00013598,2]
[396481840,1764984640699,-151.0,0.00013614,2]
[396481841,1764984640708,-151.0,0.00013614,2]
[396481842,1764984640716,-151.0,0.00013614,2]
[396481843,1764984640725,-151.0,0.00013614,2]
[396481844,1764984640734,-151.0,0.00013614,2]
[396481845,1764984640744,-151.0,0.00013614,2]
[396481846,1764984640753,-151.0,0.00013614,2]
[396481847,1764984640762,-151.0,0.00013614,2]
[396481848,1764984640771,-151.0,0.00013614,2]
[396481849,1764984640780,-151.0,0.00013614,2]
[396481850,1764984640789,-151.0,0.00013614,2]
[396481851,1764984640798,-297.926364,0.00013614,2]
[396481852,1764984640808,-210.506012,0.00013614,2]
[396481853,1764984640817,-210.506012,0.00013614,2]
[396481854,1764984640826,-210.506012,0.00013614,2]
[396481855,1764984640835,-210.506012,0.00013614,2]
[396481856,1764984640845,-210.506012,0.00013614,2]
[396481857,1764984640854,-210.506012,0.00013614,2]
[396481858,1764984640864,-210.506012,0.00013614,2]
[396481859,1764984640874,-210.506012,0.00013614,2]
[396481861,1764984640883,-210.506012,0.00013614,2]
[396481862,1764984640892,-210.506012,0.00013614,2]
[396481864,1764984640902,-210.506012,0.00013614,2]
[396481866,1764984640911,-210.506012,0.00013614,2]
[396481868,1764984640920,-210.506012,0.00013614,2]
[396481870,1764984640929,-210.506012,0.00013614,2]
[396481872,1764984640938,-210.506012,0.00013614,2]
[396481873,1764984640947,-210.506012,0.00013614,2]
[396481874,1764984640957,-210.506012,0.00013614,2]
[396481875,1764984640966,-210.506012,0.00013614,2]
[396481876,1764984640975,-210.506012,0.00013614,2]
[396481877,1764984640984,-210.506014,0.00013614,2]
[396481878,1764984640994,-500.0,0.00013615,2]
[396481879,1764984641003,-500.0,0.00013615,2]
[396481880,1764984641012,-1594.6,0.00013615,2]
[396481881,1764984641021,-500.0,0.00013615,2]
[396481882,1764984641032,-500.0,0.00013615,2]
[396481883,1764984641041,-500.0,0.00013615,2]
[396481884,1764984641050,-500.0,0.00013615,2]
[396481885,1764984641062,-500.0,0.00013615,2]
[396481886,1764984641071,-375.91196884,0.00013615,2]
[396481887,1764984641080,-940.36,0.00013615,2]
[396481888,1764984641089,-500.0,0.00013615,2]
[396481889,1764984641098,-688.03,0.00013615,2]
[396481890,1764984641107,-500.0,0.00013615,2]
[396481891,1764984641117,-309.14009811,0.00013615,2]
[396481892,1764984641126,-500.0,0.00013615,2]
[396481893,1764984641137,-500.0,0.00013615,2]
[396481894,1764984641146,-500.0,0.00013615,2]
[396481895,1764984641155,-500.0,0.00013615,2]
[396481896,1764984641165,-500.0,0.00013615,2]
[396481897,1764984641175,-500.0,0.00013615,2]
[396481898,1764984641185,-584.38,0.00013615,2]
[396481899,1764984641195,-983.17,0.00013615,2]
[396481900,1764984641207,-500.0,0.00013615,2]
[396481901,1764984641218,-500.0,0.00013615,2]
[396481902,1764984641228,-500.0,0.00013615,2]
[396481903,1764984641237,-500.0,0.00013615,2]
[396481904,1764984641247,-2127.45,0.00013615,2]
[396481905,1764984641256,-500.0,0.00013615,2]
[396481906,1764984641266,-548.51,0.00013615,2]
[396481907,1764984641275,-757.75,0.00013615,2]
[396481908,1764984641284,-500.0,0.00013615,2]
[396481909,1764984641294,-1986.82,0.00013615,2]
[396481910,1764984641303,-500.0,0.00013615,2]
[396481911,1764984641313,-500.0,0.00013615,2]
[396481912,1764984641322,-500.0,0.00013615,2]
[396481913,1764984641332,-500.0,0.00013615,2]
[396481914,1764984641343,-500.0,0.00013615,2]
[396481915,1764984641352,-500.0,0.00013615,2]
[396481916,1764984641361,-500.0,0.00013615,2]
[396481917,1764984641370,-500.0,0.00013615,2]
[396481918,1764984641379,-500.0,0.00013615,2]
[396481919,1764984641388,-520.6,0.00013615,2]
[396481920,1764984641397,-500.0,0.00013615,2]
[396481921,1764984641406,-500.0,0.00013615,2]
[396481922,1764984641415,-500.0,0.00013615,2]
[396481923,1764984641424,-598.55,0.00013615,2]
[396481924,1764984641433,-500.0,0.00013615,2]
[396481925,1764984641442,-557.96182342,0.00013615,2]
[396481926,1764984641451,-940.7,0.00013615,2]
[396481927,1764984641460,-669.51,0.00013615,2]
[396481928,1764984641470,-597.0,0.00013615,2]
[396481929,1764984641479,-500.0,0.00013615,2]
[396481930,1764984641488,-500.0,0.00013615,2]
[396481931,1764984641498,-6381.07,0.00013615,2]
[396481932,1764984641507,-1812.13,0.00013615,2]
[396481933,1764984641518,-528.51,0.00013615,2]
[396481934,1764984641528,-625.47,0.00013615,2]
[396481935,1764984641537,-500.0,0.00013615,2]
[396481936,1764984641546,-500.0,0.00013645,2]
[396481937,1764984641555,-853.71,0.00013645,2]